[Event "*** Titled Tuesday Blitz"]
[Site "Chess.com"]
[Date "2021.02.02"]
[Round "11"]
[White "GregShahade"]
[Black "SaraciNderim"]
[Result "0-1"]
[WhiteElo "2660"]
[BlackElo "2818"]
[TimeControl "180+1"]
[EndTime "12:06:02 PST"]
[Termination "SaraciNderim won by resignation"]

1. e4 {[%clk 0:03:00.9]} 1... e5 {[%clk 0:02:57.8]} 2. Nf3 {[%clk 0:03:00.8]}
2... Nc6 {[%clk 0:02:58.1]} 3. Bb5 {[%clk 0:03:01.3]} 3... a6 {[%clk 0:02:57.2]}
4. Ba4 {[%clk 0:03:01.2]} 4... g6 {[%clk 0:02:57.4]} 5. d4 {[%clk 0:02:55.9]}
5... exd4 {[%clk 0:02:55.1]} 6. Nxd4 {[%clk 0:02:56.5]} 6... Nge7 {[%clk
0:02:52.9]} 7. Nc3 {[%clk 0:02:45.3]} 7... Bg7 {[%clk 0:02:52.2]} 8. Be3 {[%clk
0:02:35.4]} 8... O-O {[%clk 0:02:42.9]} 9. Qd2 {[%clk 0:02:35.6]} 9... d6 {[%clk
0:02:38.9]} 10. O-O-O {[%clk 0:02:30.6]} 10... b5 {[%clk 0:02:36.5]} 11. Bb3
{[%clk 0:02:22.8]} 11... Nxd4 {[%clk 0:02:31.8]} 12. Bxd4 {[%clk 0:02:16.5]}
12... Bxd4 {[%clk 0:02:31.8]} 13. Qxd4 {[%clk 0:02:16.2]} 13... c5 {[%clk
0:02:32.4]} 14. Qxd6 {[%clk 0:01:50.4]} 14... Qxd6 {[%clk 0:02:31.6]} 15. Rxd6
{[%clk 0:01:51.3]} 15... c4 {[%clk 0:02:31.9]} 16. Bxc4 {[%clk 0:01:41]} 16...
bxc4 {[%clk 0:02:30.8]} 17. Rhd1 {[%clk 0:01:34.7]} 17... Be6 {[%clk 0:02:30.6]}
18. Na4 {[%clk 0:01:33.9]} 18... Nc8 {[%clk 0:02:08.4]} 19. Rc6 {[%clk
0:01:24.9]} 19... Na7 {[%clk 0:02:00.5]} 20. Rxa6 {[%clk 0:01:22.1]} 20... Nb5
{[%clk 0:02:00.5]} 21. Rxa8 {[%clk 0:01:01.5]} 21... Rxa8 {[%clk 0:02:01.4]} 22.
b3 {[%clk 0:01:02.1]} 22... Kf8 {[%clk 0:01:53.2]} 23. Kb2 {[%clk 0:00:48.6]}
23... Ke7 {[%clk 0:01:52.8]} 24. f3 {[%clk 0:00:44]} 24... h5 {[%clk 0:01:52.2]}
25. h4 {[%clk 0:00:43]} 25... c3+ {[%clk 0:01:48.4]} 26. Nxc3 {[%clk 0:00:42.1]}
26... Nxc3 {[%clk 0:01:48.6]} 27. Kxc3 {[%clk 0:00:42.6]} 27... Rxa2 {[%clk
0:01:49.2]} 28. g3 {[%clk 0:00:37.2]} 28... Ra8 {[%clk 0:01:48.3]} 29. f4 {[%clk
0:00:37]} 29... Bg4 {[%clk 0:01:47.4]} 30. Rd4 {[%clk 0:00:35.3]} 30... Ra1
{[%clk 0:01:46.7]} 31. Rd3 {[%clk 0:00:34]} 31... Re1 {[%clk 0:01:45.3]} 32. e5
{[%clk 0:00:34]} 32... Bf5 {[%clk 0:01:44.5]} 33. Rf3 {[%clk 0:00:24.9]} 33...
Re2 {[%clk 0:01:44.3]} 34. Kb4 {[%clk 0:00:20.8]} 34... Rxc2 {[%clk 0:01:44.2]}
35. Kb5 {[%clk 0:00:19.4]} 35... Bd7+ {[%clk 0:01:43.2]} 36. Kb4 {[%clk
0:00:17.9]} 36... Be6 {[%clk 0:01:43]} 37. Rd3 {[%clk 0:00:17.4]} 37... Rb2
{[%clk 0:01:42.1]} 38. Ka3 {[%clk 0:00:17.1]} 38... Rb1 {[%clk 0:01:42.2]} 39.
Ka2 {[%clk 0:00:16.7]} 39... Rg1 {[%clk 0:01:39.1]} 40. Ka3 {[%clk 0:00:17.1]}
40... f6 {[%clk 0:01:39.3]} 41. exf6+ {[%clk 0:00:16.3]} 41... Kxf6 {[%clk
0:01:39.9]} 42. Kb4 {[%clk 0:00:16.8]} 42... Kf5 {[%clk 0:01:40.3]} 43. Re3
{[%clk 0:00:16.2]} 43... Bf7 {[%clk 0:01:36.8]} 44. Re5+ {[%clk 0:00:15]} 44...
Kf6 {[%clk 0:01:37.3]} 45. Rg5 {[%clk 0:00:14.4]} 45... Rb1 {[%clk 0:01:36.4]}
46. Kc3 {[%clk 0:00:13]} 46... Rxb3+ {[%clk 0:01:36.3]} 47. Kd2 {[%clk
0:00:13.5]} 47... Be6 {[%clk 0:01:36.3]} 48. Ke2 {[%clk 0:00:12.2]} 48... Bf5
{[%clk 0:01:36.4]} 49. Kf2 {[%clk 0:00:12.7]} 49... Ke6 {[%clk 0:01:34.4]} 50.
Kg2 {[%clk 0:00:12.6]} 50... Kd5 {[%clk 0:01:34.4]} 51. Kh2 {[%clk 0:00:12.9]}
51... Ke4 {[%clk 0:01:34.6]} 52. Kg2 {[%clk 0:00:12.8]} 52... Rb2+ {[%clk
0:01:34.6]} 53. Kg1 {[%clk 0:00:13.3]} 53... Kf3 {[%clk 0:01:34.7]} 54. g4
{[%clk 0:00:14.1]} 54... hxg4 {[%clk 0:01:34.8]} 55. h5 {[%clk 0:00:14.3]} 55...
g3 {[%clk 0:01:35.2]} 0-1

[Event "*** Titled Tuesday Blitz"]
[Site "Chess.com"]
[Date "2021.02.02"]
[Round "11"]
[White "Volodar_Murzin"]
[Black "federicosellitti"]
[Result "1-0"]
[WhiteElo "2623"]
[BlackElo "2459"]
[TimeControl "180+1"]
[EndTime "12:06:09 PST"]
[Termination "Volodar_Murzin won by resignation"]

1. e4 {[%clk 0:03:00.9]} 1... c5 {[%clk 0:02:57.2]} 2. Nf3 {[%clk 0:03:00.7]}
2... Nf6 {[%clk 0:02:57.8]} 3. e5 {[%clk 0:02:58.8]} 3... Nd5 {[%clk 0:02:58.2]}
4. c3 {[%clk 0:02:55.7]} 4... Nc6 {[%clk 0:02:58.2]} 5. d4 {[%clk 0:02:54.9]}
5... cxd4 {[%clk 0:02:59.1]} 6. cxd4 {[%clk 0:02:55.4]} 6... e6 {[%clk
0:02:59.5]} 7. Nc3 {[%clk 0:02:54.2]} 7... Nxc3 {[%clk 0:02:59.6]} 8. bxc3
{[%clk 0:02:55.1]} 8... d6 {[%clk 0:03:00.5]} 9. exd6 {[%clk 0:02:52.8]} 9...
Bxd6 {[%clk 0:03:01.4]} 10. Bd3 {[%clk 0:02:53.1]} 10... b6 {[%clk 0:03:01.3]}
11. O-O {[%clk 0:02:49.6]} 11... Bb7 {[%clk 0:03:01.5]} 12. Re1 {[%clk
0:02:49.4]} 12... Qc7 {[%clk 0:02:56.7]} 13. d5 {[%clk 0:02:38.3]} 13... Ne5
{[%clk 0:02:48.5]} 14. Bb5+ {[%clk 0:02:21.3]} 14... Kf8 {[%clk 0:02:27.4]} 15.
Nxe5 {[%clk 0:02:20.5]} 15... Bxe5 {[%clk 0:02:28.3]} 16. Ba3+ {[%clk
0:02:20.5]} 16... Kg8 {[%clk 0:02:26.5]} 17. dxe6 {[%clk 0:02:20.6]} 17... fxe6
{[%clk 0:02:18.3]} 18. Qd7 {[%clk 0:02:12.7]} 18... Bxh2+ {[%clk 0:01:58.1]} 19.
Kh1 {[%clk 0:02:11.9]} 19... Bd5 {[%clk 0:01:58.8]} 20. Rad1 {[%clk 0:01:51.1]}
20... Rd8 {[%clk 0:01:36.1]} 21. Rxd5 {[%clk 0:01:22.8]} 21... Rxd7 {[%clk
0:01:24]} 22. Rxd7 {[%clk 0:00:50.5]} 22... Qxc3 {[%clk 0:01:24.4]} 23. Re3
{[%clk 0:00:48.8]} 23... Qf6 {[%clk 0:01:18.4]} 24. Kxh2 {[%clk 0:00:46]} 24...
h5 {[%clk 0:01:19.1]} 25. Rf3 {[%clk 0:00:43.2]} 25... Qe5+ {[%clk 0:01:16.6]}
26. Rg3 {[%clk 0:00:30.3]} 26... h4 {[%clk 0:01:16.9]} 27. Rxg7+ {[%clk
0:00:29.5]} 27... Qxg7 {[%clk 0:01:13.3]} 28. Rxg7+ {[%clk 0:00:30.4]} 28...
Kxg7 {[%clk 0:01:14.2]} 29. Bb2+ {[%clk 0:00:30.7]} 29... Kh7 {[%clk 0:01:14.8]}
30. Bxh8 {[%clk 0:00:31.6]} 30... Kxh8 {[%clk 0:01:15.7]} 31. Kh3 {[%clk
0:00:32.1]} 31... Kg7 {[%clk 0:01:16.5]} 32. Kxh4 {[%clk 0:00:33]} 32... Kf6
{[%clk 0:01:17.2]} 33. Kg4 {[%clk 0:00:33]} 33... Ke5 {[%clk 0:01:18.1]} 34. Bc4
{[%clk 0:00:33.3]} 34... a6 {[%clk 0:01:19]} 35. Bxa6 {[%clk 0:00:33.2]} 35...
Kd5 {[%clk 0:01:19.6]} 36. a4 {[%clk 0:00:33.7]} 36... Kc5 {[%clk 0:01:20.1]}
37. Bb5 {[%clk 0:00:34.6]} 37... e5 {[%clk 0:01:20.4]} 38. Kf3 {[%clk
0:00:35.5]} 38... Kd4 {[%clk 0:01:21]} 39. Ke2 {[%clk 0:00:35.8]} 39... e4
{[%clk 0:01:21.6]} 40. f3 {[%clk 0:00:36.7]} 40... exf3+ {[%clk 0:01:22]} 41.
Kxf3 {[%clk 0:00:37.4]} 41... Ke5 {[%clk 0:01:22.9]} 42. g4 {[%clk 0:00:38.2]}
42... Kf6 {[%clk 0:01:23.8]} 43. Kf4 {[%clk 0:00:38.7]} 43... Ke7 {[%clk
0:01:24.7]} 44. g5 {[%clk 0:00:39.6]} 44... Kd6 {[%clk 0:01:25.6]} 45. Kf5
{[%clk 0:00:39.9]} 45... Kc5 {[%clk 0:01:26.5]} 46. Kf6 {[%clk 0:00:40.3]} 46...
Kb4 {[%clk 0:01:27.4]} 47. g6 {[%clk 0:00:40.8]} 47... Ka5 {[%clk 0:01:28.3]}
48. g7 {[%clk 0:00:41.7]} 1-0

[Event "*** Titled Tuesday Blitz"]
[Site "Chess.com"]
[Date "2021.02.02"]
[Round "11"]
[White "northridgehawk"]
[Black "NMJeevanK"]
[Result "1-0"]
[WhiteElo "2354"]
[BlackElo "2503"]
[TimeControl "180+1"]
[EndTime "12:06:09 PST"]
[Termination "northridgehawk won by checkmate"]

1. e4 {[%clk 0:03:00.9]} 1... d6 {[%clk 0:02:38.6]} 2. d4 {[%clk 0:02:53.1]}
2... Nf6 {[%clk 0:02:38.6]} 3. Nc3 {[%clk 0:02:52]} 3... g6 {[%clk 0:02:38.9]}
4. Be3 {[%clk 0:02:51.1]} 4... Bg7 {[%clk 0:02:39.6]} 5. Qd2 {[%clk 0:02:51.4]}
5... O-O {[%clk 0:02:40]} 6. O-O-O {[%clk 0:02:51.8]} 6... Nbd7 {[%clk
0:02:40.1]} 7. f3 {[%clk 0:02:51.8]} 7... c6 {[%clk 0:02:40.5]} 8. g4 {[%clk
0:02:51.8]} 8... b5 {[%clk 0:02:40.2]} 9. h4 {[%clk 0:02:52.1]} 9... a5 {[%clk
0:02:39.7]} 10. h5 {[%clk 0:02:52.1]} 10... a4 {[%clk 0:02:37.7]} 11. Bh6 {[%clk
0:02:51.7]} 11... b4 {[%clk 0:02:36]} 12. Nce2 {[%clk 0:02:50.3]} 12... b3
{[%clk 0:02:34.1]} 13. cxb3 {[%clk 0:02:46.1]} 13... axb3 {[%clk 0:02:34.1]} 14.
a3 {[%clk 0:02:46.7]} 14... c5 {[%clk 0:02:30.8]} 15. Bxg7 {[%clk 0:02:43.7]}
15... Kxg7 {[%clk 0:02:30.6]} 16. hxg6 {[%clk 0:02:44.3]} 16... fxg6 {[%clk
0:02:29.8]} 17. Qh6+ {[%clk 0:02:44.2]} 17... Kg8 {[%clk 0:02:24.4]} 18. Nf4
{[%clk 0:02:44.5]} 18... Rf7 {[%clk 0:02:18]} 19. Bc4 {[%clk 0:02:42.2]} 19...
cxd4 {[%clk 0:01:58]} 20. Nxg6 {[%clk 0:02:21.2]} 20... d5 {[%clk 0:01:27.2]}
21. exd5 {[%clk 0:02:14.2]} 21... Qc7 {[%clk 0:01:22.3]} 22. Rxd4 {[%clk
0:02:10]} 22... Ba6 {[%clk 0:00:46.6]} 23. d6 {[%clk 0:01:59.2]} 23... Qc5
{[%clk 0:00:38.5]} 24. Nxe7+ {[%clk 0:01:58]} 24... Kh8 {[%clk 0:00:37.8]} 25.
Qf4 {[%clk 0:01:38.3]} 25... Ne5 {[%clk 0:00:21.4]} 26. Qxe5 {[%clk 0:01:29.2]}
26... Qxe5 {[%clk 0:00:04.2]} 27. Ng6+ {[%clk 0:01:29]} 27... Kg7 {[%clk
0:00:04.8]} 28. Nxe5 {[%clk 0:01:29]} 28... Rc8 {[%clk 0:00:03.8]} 29. Nxf7
{[%clk 0:01:23.6]} 29... Bxc4 {[%clk 0:00:03.6]} 30. Kd2 {[%clk 0:01:20.8]}
30... Bxf7 {[%clk 0:00:01.4]} 31. d7 {[%clk 0:01:14.8]} 31... Rc2+ {[%clk
0:00:02.3]} 32. Ke3 {[%clk 0:01:14.4]} 32... Nxd7 {[%clk 0:00:03.1]} 33. Rxd7
{[%clk 0:01:13.6]} 33... Rxb2 {[%clk 0:00:04]} 34. Ne2 {[%clk 0:01:13.6]} 34...
Ra2 {[%clk 0:00:04]} 35. Rb1 {[%clk 0:01:12.8]} 35... Rxa3 {[%clk 0:00:03.6]}
36. Kf4 {[%clk 0:01:12.4]} 36... Kf6 {[%clk 0:00:03.8]} 37. Nd4 {[%clk
0:01:10.7]} 37... Ra4 {[%clk 0:00:03.7]} 38. g5+ {[%clk 0:01:09.4]} 38... Kg6
{[%clk 0:00:03.5]} 39. Ke3 {[%clk 0:01:07.7]} 39... Ra3 {[%clk 0:00:03.2]} 40.
f4 {[%clk 0:01:06.7]} 40... Bc4 {[%clk 0:00:03.4]} 41. Ke4 {[%clk 0:01:02.6]}
41... Kh5 {[%clk 0:00:03.7]} 42. Rxh7+ {[%clk 0:01:01.2]} 42... Kg4 {[%clk
0:00:04.1]} 43. Rg1# {[%clk 0:01:00]} 1-0

[Event "*** Titled Tuesday Blitz"]
[Site "Chess.com"]
[Date "2021.02.02"]
[Round "11"]
[White "Homino"]
[Black "chessmadara"]
[Result "1/2-1/2"]
[WhiteElo "2287"]
[BlackElo "2160"]
[TimeControl "180+1"]
[EndTime "12:06:11 PST"]
[Termination "Game drawn by repetition"]

1. e4 {[%clk 0:03:00.9]} 1... c5 {[%clk 0:02:58.9]} 2. Nf3 {[%clk 0:03:00.5]}
2... d6 {[%clk 0:02:57.6]} 3. d4 {[%clk 0:03:00.6]} 3... cxd4 {[%clk 0:02:58.4]}
4. Nxd4 {[%clk 0:03:01.5]} 4... Nf6 {[%clk 0:02:57.8]} 5. Nc3 {[%clk 0:03:01.7]}
5... g6 {[%clk 0:02:57.9]} 6. Be3 {[%clk 0:03:01.1]} 6... Bg7 {[%clk 0:02:57.1]}
7. f3 {[%clk 0:03:01.6]} 7... Nc6 {[%clk 0:02:57.1]} 8. Qd2 {[%clk 0:02:58.3]}
8... O-O {[%clk 0:02:56.9]} 9. O-O-O {[%clk 0:02:57.9]} 9... d5 {[%clk
0:02:56.7]} 10. Kb1 {[%clk 0:02:57.8]} 10... e5 {[%clk 0:02:30.2]} 11. Nxc6
{[%clk 0:02:50.7]} 11... bxc6 {[%clk 0:02:31.1]} 12. exd5 {[%clk 0:02:49.2]}
12... cxd5 {[%clk 0:02:32]} 13. Nxd5 {[%clk 0:02:48]} 13... Nxd5 {[%clk
0:02:31.9]} 14. Qxd5 {[%clk 0:02:48.9]} 14... Qc7 {[%clk 0:02:06.9]} 15. Qxa8
{[%clk 0:02:26.6]} 15... Bf5 {[%clk 0:02:06.3]} 16. Qxf8+ {[%clk 0:02:21]} 16...
Bxf8 {[%clk 0:01:59.6]} 17. Bd3 {[%clk 0:02:21.3]} 17... Be6 {[%clk 0:01:59]}
18. Be4 {[%clk 0:02:01.9]} 18... Qa5 {[%clk 0:01:45.9]} 19. b3 {[%clk
0:01:57.7]} 19... f5 {[%clk 0:01:44.1]} 20. Bd3 {[%clk 0:01:49.4]} 20... Bg7
{[%clk 0:01:44]} 21. Bd2 {[%clk 0:01:44.7]} 21... Qa3 {[%clk 0:01:40.9]} 22. Bc1
{[%clk 0:01:27.8]} 22... Qc5 {[%clk 0:01:39.8]} 23. Bb2 {[%clk 0:01:26.5]} 23...
a5 {[%clk 0:01:34.4]} 24. a4 {[%clk 0:01:21.3]} 24... e4 {[%clk 0:01:21.8]} 25.
fxe4 {[%clk 0:01:16.5]} 25... Bxb2 {[%clk 0:01:19.5]} 26. Kxb2 {[%clk
0:01:15.1]} 26... fxe4 {[%clk 0:01:19.4]} 27. Bb5 {[%clk 0:01:09.8]} 27... Qe5+
{[%clk 0:01:16.1]} 28. Kb1 {[%clk 0:01:07.2]} 28... Qc3 {[%clk 0:01:15.6]} 29.
Rhe1 {[%clk 0:00:28.3]} 29... Bxb3 {[%clk 0:00:37.8]} 30. cxb3 {[%clk
0:00:27.3]} 30... Qxb3+ {[%clk 0:00:37.8]} 31. Kc1 {[%clk 0:00:27]} 31... Qc3+
{[%clk 0:00:37.5]} 32. Kb1 {[%clk 0:00:27]} 32... Qb3+ {[%clk 0:00:37.3]} 33.
Kc1 {[%clk 0:00:25]} 33... Qc3+ {[%clk 0:00:36.6]} 34. Kb1 {[%clk 0:00:24.7]}
34... Qb3+ {[%clk 0:00:35.9]} 1/2-1/2

[Event "*** Titled Tuesday Blitz"]
[Site "Chess.com"]
[Date "2021.02.02"]
[Round "11"]
[White "Djager97"]
[Black "DenLaz"]
[Result "0-1"]
[WhiteElo "2598"]
[BlackElo "2820"]
[TimeControl "180+1"]
[EndTime "12:06:12 PST"]
[Termination "DenLaz won by checkmate"]

1. e4 {[%clk 0:03:00.9]} 1... e5 {[%clk 0:02:59]} 2. Nf3 {[%clk 0:03:01.5]} 2...
Nc6 {[%clk 0:02:59.2]} 3. d4 {[%clk 0:03:02.2]} 3... exd4 {[%clk 0:02:59.2]} 4.
Nxd4 {[%clk 0:03:02.9]} 4... Bc5 {[%clk 0:02:58.5]} 5. Nb3 {[%clk 0:03:02.7]}
5... Bb6 {[%clk 0:02:58.4]} 6. Qe2 {[%clk 0:03:03.3]} 6... d6 {[%clk 0:02:52.1]}
7. Nc3 {[%clk 0:03:02.7]} 7... Nf6 {[%clk 0:02:52.4]} 8. Be3 {[%clk 0:03:02.9]}
8... Be6 {[%clk 0:02:51.3]} 9. O-O-O {[%clk 0:03:02.6]} 9... Qe7 {[%clk
0:02:52]} 10. g3 {[%clk 0:03:02.1]} 10... O-O-O {[%clk 0:02:51.2]} 11. Bxb6
{[%clk 0:02:56.7]} 11... axb6 {[%clk 0:02:50.4]} 12. Bg2 {[%clk 0:02:57.6]}
12... Rhe8 {[%clk 0:02:49]} 13. Rhe1 {[%clk 0:02:55.3]} 13... Nd7 {[%clk
0:02:48]} 14. f4 {[%clk 0:02:53.9]} 14... f6 {[%clk 0:02:47.2]} 15. Qb5 {[%clk
0:02:45.4]} 15... Nc5 {[%clk 0:02:40.8]} 16. Nd5 {[%clk 0:02:39.2]} 16... Qf7
{[%clk 0:02:31.6]} 17. Nxc5 {[%clk 0:02:24]} 17... dxc5 {[%clk 0:02:28.5]} 18.
Qa4 {[%clk 0:02:22.7]} 18... Kb8 {[%clk 0:02:25.2]} 19. Kb1 {[%clk 0:02:00.9]}
19... f5 {[%clk 0:02:00.8]} 20. Nc3 {[%clk 0:02:00.4]} 20... Rd4 {[%clk
0:01:43.6]} 21. Qa3 {[%clk 0:01:54.6]} 21... Red8 {[%clk 0:01:37.7]} 22. Rxd4
{[%clk 0:01:54]} 22... Nxd4 {[%clk 0:01:36.3]} 23. Qa4 {[%clk 0:01:31.6]} 23...
Qh5 {[%clk 0:01:31.3]} 24. h3 {[%clk 0:01:07.9]} 24... Qf7 {[%clk 0:01:15.7]}
25. a3 {[%clk 0:01:03.4]} 25... h5 {[%clk 0:01:12]} 26. exf5 {[%clk 0:01:00.1]}
26... Bxf5 {[%clk 0:01:11.1]} 27. Be4 {[%clk 0:00:54.1]} 27... Qg6 {[%clk
0:01:09]} 28. Bxf5 {[%clk 0:00:47.8]} 28... Qxf5 {[%clk 0:00:53.9]} 29. Re8
{[%clk 0:00:34.5]} 29... Rxe8 {[%clk 0:00:52.4]} 30. Qxe8+ {[%clk 0:00:35.4]}
30... Qc8 {[%clk 0:00:52.5]} 31. Qxh5 {[%clk 0:00:32.5]} 31... Qe6 {[%clk
0:00:49.7]} 32. Qe5 {[%clk 0:00:25.7]} 32... Qxh3 {[%clk 0:00:47.9]} 33. Qxg7
{[%clk 0:00:25.5]} 33... Qf1+ {[%clk 0:00:42.5]} 34. Ka2 {[%clk 0:00:24.7]}
34... Nxc2 {[%clk 0:00:38.5]} 35. Qg8+ {[%clk 0:00:19.8]} 35... Ka7 {[%clk
0:00:38.5]} 36. Qb3 {[%clk 0:00:18.2]} 36... Qa1# {[%clk 0:00:38.1]} 0-1

[Event "*** Titled Tuesday Blitz"]
[Site "Chess.com"]
[Date "2021.02.02"]
[Round "11"]
[White "Grimlock_Glasgow"]
[Black "oogee"]
[Result "0-1"]
[WhiteElo "2473"]
[BlackElo "2369"]
[TimeControl "180+1"]
[EndTime "12:06:13 PST"]
[Termination "oogee won by resignation"]

1. e4 {[%clk 0:03:00.9]} 1... c5 {[%clk 0:02:59.3]} 2. Nc3 {[%clk 0:03:00.7]}
2... g6 {[%clk 0:02:58.6]} 3. d4 {[%clk 0:02:59.7]} 3... Bg7 {[%clk 0:02:57.2]}
4. dxc5 {[%clk 0:02:57.2]} 4... Nf6 {[%clk 0:02:53.4]} 5. Be3 {[%clk 0:02:47.4]}
5... Qa5 {[%clk 0:02:44]} 6. Qd2 {[%clk 0:02:23.6]} 6... Na6 {[%clk 0:02:36.6]}
7. f3 {[%clk 0:01:37.1]} 7... O-O {[%clk 0:01:53.6]} 8. a3 {[%clk 0:01:31.1]}
8... d6 {[%clk 0:01:36.8]} 9. cxd6 {[%clk 0:01:29.2]} 9... Rd8 {[%clk
0:01:36.3]} 10. Nb5 {[%clk 0:01:19.9]} 10... Qxd2+ {[%clk 0:01:31.9]} 11. Bxd2
{[%clk 0:01:17.6]} 11... exd6 {[%clk 0:01:29.1]} 12. O-O-O {[%clk 0:01:13.4]}
12... d5 {[%clk 0:01:15.3]} 13. e5 {[%clk 0:01:00.4]} 13... Nd7 {[%clk
0:01:14.3]} 14. f4 {[%clk 0:01:00.3]} 14... f6 {[%clk 0:01:14.5]} 15. e6 {[%clk
0:00:51.3]} 15... Ndc5 {[%clk 0:01:09.7]} 16. f5 {[%clk 0:00:49.2]} 16... gxf5
{[%clk 0:01:05.1]} 17. Nd4 {[%clk 0:00:49.4]} 17... Nxe6 {[%clk 0:00:56.6]} 18.
Nxf5 {[%clk 0:00:48.4]} 18... Bf8 {[%clk 0:00:56.8]} 19. Nf3 {[%clk 0:00:46.7]}
19... Nac5 {[%clk 0:00:41]} 20. N3d4 {[%clk 0:00:31.2]} 20... Nxd4 {[%clk
0:00:30.7]} 21. Nxd4 {[%clk 0:00:32.1]} 21... Bg4 {[%clk 0:00:30.6]} 22. Re1
{[%clk 0:00:30.9]} 22... Ne4 {[%clk 0:00:30.1]} 23. Be3 {[%clk 0:00:29.5]} 23...
Rac8 {[%clk 0:00:28.2]} 24. Bd3 {[%clk 0:00:28.9]} 24... Nc5 {[%clk 0:00:26.6]}
25. Kb1 {[%clk 0:00:28]} 25... Nxd3 {[%clk 0:00:24.8]} 26. cxd3 {[%clk
0:00:28.9]} 26... Bc5 {[%clk 0:00:24.8]} 27. Rhf1 {[%clk 0:00:26.2]} 27... Rd6
{[%clk 0:00:21.7]} 28. Nf5 {[%clk 0:00:18.7]} 28... Bxf5 {[%clk 0:00:20.8]} 29.
Bxc5 {[%clk 0:00:16.4]} 29... Bxd3+ {[%clk 0:00:20.2]} 30. Ka1 {[%clk
0:00:14.8]} 30... Rxc5 {[%clk 0:00:20.3]} 0-1

[Event "*** Titled Tuesday Blitz"]
[Site "Chess.com"]
[Date "2021.02.02"]
[Round "11"]
[White "fridaywins"]
[Black "Andrakhanova"]
[Result "1/2-1/2"]
[WhiteElo "2164"]
[BlackElo "2267"]
[TimeControl "180+1"]
[EndTime "12:06:17 PST"]
[Termination "Game drawn by repetition"]

1. e4 {[%clk 0:03:00.9]} 1... c5 {[%clk 0:02:59.7]} 2. Nf3 {[%clk 0:02:59.1]}
2... e6 {[%clk 0:02:59.9]} 3. d3 {[%clk 0:02:57.4]} 3... b6 {[%clk 0:02:58.7]}
4. Nbd2 {[%clk 0:02:58.3]} 4... Bb7 {[%clk 0:02:58.9]} 5. g3 {[%clk 0:02:59]}
5... d5 {[%clk 0:02:58.5]} 6. Bg2 {[%clk 0:02:59.2]} 6... Nd7 {[%clk 0:02:57.9]}
7. O-O {[%clk 0:02:59]} 7... g6 {[%clk 0:02:58.1]} 8. c4 {[%clk 0:02:37]} 8...
dxe4 {[%clk 0:02:54.4]} 9. dxe4 {[%clk 0:02:37]} 9... Bg7 {[%clk 0:02:52.7]} 10.
Re1 {[%clk 0:02:34.9]} 10... Ne7 {[%clk 0:02:52.5]} 11. Qc2 {[%clk 0:02:28.6]}
11... O-O {[%clk 0:02:51.9]} 12. Rb1 {[%clk 0:02:28.8]} 12... h6 {[%clk
0:02:51.3]} 13. b3 {[%clk 0:02:28.6]} 13... Qc7 {[%clk 0:02:49.8]} 14. Bb2
{[%clk 0:02:28.2]} 14... Ne5 {[%clk 0:02:39.8]} 15. Nxe5 {[%clk 0:02:26.9]}
15... Bxe5 {[%clk 0:02:40.7]} 16. Nf3 {[%clk 0:02:15.9]} 16... Bxb2 {[%clk
0:02:34.9]} 17. Qxb2 {[%clk 0:02:15.6]} 17... Nc6 {[%clk 0:02:28]} 18. Qf6
{[%clk 0:02:06]} 18... Qe7 {[%clk 0:02:24.3]} 19. Qf4 {[%clk 0:02:06]} 19... Kg7
{[%clk 0:02:23]} 20. e5 {[%clk 0:02:01.7]} 20... Rad8 {[%clk 0:02:19.4]} 21. h4
{[%clk 0:02:01.2]} 21... Nd4 {[%clk 0:02:10.5]} 22. Rbd1 {[%clk 0:01:54.1]}
22... Bxf3 {[%clk 0:01:55.6]} 23. Bxf3 {[%clk 0:01:54]} 23... Rd7 {[%clk
0:01:55]} 24. Kg2 {[%clk 0:01:33.5]} 24... Rfd8 {[%clk 0:01:49.6]} 25. Qe4
{[%clk 0:00:56.8]} 25... h5 {[%clk 0:01:27.2]} 26. Qf4 {[%clk 0:00:51.7]} 26...
Nf5 {[%clk 0:01:14.7]} 27. Rxd7 {[%clk 0:00:50.7]} 27... Qxd7 {[%clk 0:01:15.6]}
28. Rd1 {[%clk 0:00:49.5]} 28... Qc7 {[%clk 0:01:15.7]} 29. Rxd8 {[%clk
0:00:48.9]} 29... Qxd8 {[%clk 0:01:16.6]} 30. Be4 {[%clk 0:00:49.5]} 30... Qd4
{[%clk 0:01:11.4]} 31. Bxf5 {[%clk 0:00:47.6]} 31... Qxf4 {[%clk 0:01:10]} 32.
gxf4 {[%clk 0:00:47.7]} 32... gxf5 {[%clk 0:01:07.4]} 33. Kf3 {[%clk 0:00:48]}
33... Kf8 {[%clk 0:00:57.8]} 34. Ke3 {[%clk 0:00:48.1]} 34... Ke7 {[%clk
0:00:58.4]} 35. Kd3 {[%clk 0:00:48.6]} 35... Kd7 {[%clk 0:00:59]} 36. Ke3 {[%clk
0:00:49]} 36... Kc6 {[%clk 0:00:59.9]} 37. Kd3 {[%clk 0:00:49]} 37... b5 {[%clk
0:00:59.1]} 38. Kc3 {[%clk 0:00:45.3]} 38... a6 {[%clk 0:00:52.3]} 39. a3 {[%clk
0:00:45]} 39... Kb6 {[%clk 0:00:50.7]} 40. b4 {[%clk 0:00:44]} 40... cxb4+
{[%clk 0:00:48.7]} 41. axb4 {[%clk 0:00:43.7]} 41... bxc4 {[%clk 0:00:47.1]} 42.
Kxc4 {[%clk 0:00:43.7]} 42... Kc6 {[%clk 0:00:46.4]} 43. Kd4 {[%clk 0:00:43.8]}
43... Kb5 {[%clk 0:00:44.7]} 44. Kc3 {[%clk 0:00:43.8]} 44... Ka4 {[%clk
0:00:40.2]} 45. Kc4 {[%clk 0:00:43.8]} 45... Ka3 {[%clk 0:00:39.8]} 46. Kc3
{[%clk 0:00:44]} 46... Ka4 {[%clk 0:00:36.2]} 47. Kc4 {[%clk 0:00:44.2]} 47...
Ka3 {[%clk 0:00:35.1]} 48. Kc3 {[%clk 0:00:44.5]} 48... Ka4 {[%clk 0:00:35.5]}
1/2-1/2